[Event "Titled Tuesday Blitz April 11 Late 2023"]
[White "Seo, Jung Min"]
[Black "Ozalp, Burak"]
[WhiteFideId "1734687"]
[BlackFideId "6314210"]
[WhiteElo "2468"]
[BlackElo "2106"]
[Result "1-0"]
[Round "01"]
[TimeControl "180+2"]
[Date "2023.04.11"]
[WhiteClock "0:00:01"]
[BlackClock "0:00:00"]

1. g3 {[%clk 0:00:01]}  g6 {[%clk 0:00:01]} 2. Bg2 {[%clk 0:00:01]}  Bg7 {[%clk 0:00:01]} 3. d4 {[%clk 0:00:01]}  d6 {[%clk 0:00:01]} 4. Nf3 {[%clk 0:00:01]}  Nf6 {[%clk 0:00:01]} 5. O-O {[%clk 0:00:01]}  O-O {[%clk 0:00:01]} 6. Re1 {[%clk 0:00:01]}  Ne4 {[%clk 0:00:01]} 7. c3 {[%clk 0:00:01]}  c5 {[%clk 0:00:01]} 8. Be3 {[%clk 0:00:01]}  Nd7 {[%clk 0:00:01]} 9. Nbd2 {[%clk 0:00:01]}  Ndf6 {[%clk 0:00:01]} 10. Nxe4 {[%clk 0:00:01]}  Nxe4 {[%clk 0:00:01]} 11. Qc2 {[%clk 0:00:01]}  Bf5 {[%clk 0:00:01]} 12. Qb3 {[%clk 0:00:01]}  Qb6 {[%clk 0:00:01]} 13. Qa3 {[%clk 0:00:01]}  Rac8 {[%clk 0:00:00]} 14. Rad1 {[%clk 0:00:01]}  h6 {[%clk 0:00:00]} 15. Nh4 {[%clk 0:00:01]}  cxd4 {[%clk 0:00:00]} 16. Bxd4 {[%clk 0:00:01]}  Bxd4 {[%clk 0:00:00]} 17. cxd4 {[%clk 0:00:01]}  Rc2 {[%clk 0:00:00]} 18. Nxf5 {[%clk 0:00:01]}  gxf5 {[%clk 0:00:00]} 19. Qe3 {[%clk 0:00:01]}  Qxb2 {[%clk 0:00:00]} 20. Qxh6 {[%clk 0:00:01]}  Rxe2 {[%clk 0:00:00]} 21. Bxe4 {[%clk 0:00:01]}  fxe4 {[%clk 0:00:00]} 22. Qg5+ {[%clk 0:00:01]}  Kh8 {[%clk 0:00:00]} 23. Qh5+ {[%clk 0:00:01]}  Kg7 {[%clk 0:00:00]} 24. Rxe2 {[%clk 0:00:01]} 1-0


[Site "https://www.chess.com"]

[Event "Titled Tuesday Blitz April 11 Late 2023"]
[White "Rodriguez Santiago, Jaime"]
[Black "Tarlabasi, Emirhan"]
[WhiteFideId "3100898"]
[BlackFideId "6350275"]
[WhiteElo "2025"]
[BlackElo "2200"]
[Result "0-1"]
[Round "01"]
[TimeControl "180+2"]
[Date "2023.04.11"]
[WhiteClock "0:00:13"]
[BlackClock "0:00:19"]

1. c4 {[%clk 0:03:00]}  c5 {[%clk 0:02:59]} 2. Nc3 {[%clk 0:02:59]}  Nf6 {[%clk 0:02:59]} 3. g3 {[%clk 0:03:00]}  g6 {[%clk 0:02:59]} 4. Bg2 {[%clk 0:03:00]}  Bg7 {[%clk 0:03:00]} 5. e4 {[%clk 0:03:00]}  O-O {[%clk 0:03:00]} 6. Nge2 {[%clk 0:02:59]}  Nc6 {[%clk 0:03:01]} 7. d3 {[%clk 0:02:59]}  e6 {[%clk 0:03:01]} 8. O-O {[%clk 0:02:59]}  b6 {[%clk 0:03:01]} 9. h3 {[%clk 0:02:59]}  Bb7 {[%clk 0:03:01]} 10. Be3 {[%clk 0:02:59]}  d6 {[%clk 0:03:01]} 11. Qd2 {[%clk 0:02:59]}  a6 {[%clk 0:03:01]} 12. Bh6 {[%clk 0:02:59]}  Qc7 {[%clk 0:03:02]} 13. Bxg7 {[%clk 0:02:59]}  Kxg7 {[%clk 0:03:03]} 14. f4 {[%clk 0:02:55]}  Rfe8 {[%clk 0:03:02]} 15. g4 {[%clk 0:02:42]}  Rad8 {[%clk 0:03:01]} 16. Ng3 {[%clk 0:02:37]}  Nd4 {[%clk 0:03:01]} 17. f5 {[%clk 0:02:32]}  exf5 {[%clk 0:03:00]} 18. gxf5 {[%clk 0:02:31]}  Re5 {[%clk 0:02:49]} 19. fxg6 {[%clk 0:02:27]}  hxg6 {[%clk 0:02:45]} 20. Rae1 {[%clk 0:02:07]}  Rh8 {[%clk 0:02:42]} 21. Qf4 {[%clk 0:01:47]}  Nh5 {[%clk 0:02:42]} 22. Nxh5+ {[%clk 0:01:43]}  Rhxh5 {[%clk 0:02:43]} 23. Qf6+ {[%clk 0:01:37]}  Kg8 {[%clk 0:02:42]} 24. Nd5 {[%clk 0:01:27]}  Bxd5 {[%clk 0:02:41]} 25. exd5 {[%clk 0:01:28]}  Qd7 {[%clk 0:02:04]} 26. Rxe5 {[%clk 0:01:17]}  Rxe5 {[%clk 0:02:05]} 27. Rf2 {[%clk 0:01:11]}  b5 {[%clk 0:01:43]} 28. b3 {[%clk 0:01:05]}  b4 {[%clk 0:01:39]} 29. Kh2 {[%clk 0:01:04]}  a5 {[%clk 0:01:19]} 30. Be4 {[%clk 0:00:56]}  Qe7 {[%clk 0:01:03]} 31. Qxe7 {[%clk 0:00:40]}  Rxe7 {[%clk 0:01:03]} 32. Rf6 {[%clk 0:00:40]}  Rd7 {[%clk 0:01:04]} 33. h4 {[%clk 0:00:34]}  Kg7 {[%clk 0:01:05]} 34. Rf2 {[%clk 0:00:31]}  Re7 {[%clk 0:01:04]} 35. Kg3 {[%clk 0:00:25]}  f5 {[%clk 0:01:00]} 36. Bg2 {[%clk 0:00:22]}  Re2 {[%clk 0:01:00]} 37. Rxe2 {[%clk 0:00:22]}  Nxe2+ {[%clk 0:01:01]} 38. Kf2 {[%clk 0:00:21]}  Nc3 {[%clk 0:01:00]} 39. Bf3 {[%clk 0:00:20]}  Nxa2 {[%clk 0:01:00]} 40. Ke3 {[%clk 0:00:19]}  Nc3 {[%clk 0:00:57]} 41. Kd2 {[%clk 0:00:19]}  Kf6 {[%clk 0:00:55]} 42. Kc2 {[%clk 0:00:19]}  g5 {[%clk 0:00:56]} 43. hxg5+ {[%clk 0:00:18]}  Kxg5 {[%clk 0:00:56]} 44. Kb2 {[%clk 0:00:17]}  Kf4 {[%clk 0:00:56]} 45. Bh1 {[%clk 0:00:16]}  Ke3 {[%clk 0:00:56]} 46. Kc2 {[%clk 0:00:16]}  f4 {[%clk 0:00:57]} 47. Bg2 {[%clk 0:00:15]}  f3 {[%clk 0:00:57]} 48. Bxf3 {[%clk 0:00:16]}  Kxf3 {[%clk 0:00:57]} 49. d4 {[%clk 0:00:17]}  cxd4 {[%clk 0:00:54]} 50. c5 {[%clk 0:00:18]}  Nxd5 {[%clk 0:00:50]} 51. cxd6 {[%clk 0:00:18]}  Ke2 {[%clk 0:00:33]} 52. d7 {[%clk 0:00:17]}  d3+ {[%clk 0:00:34]} 53. Kb2 {[%clk 0:00:17]}  d2 {[%clk 0:00:34]} 54. d8=Q {[%clk 0:00:16]}  d1=Q {[%clk 0:00:34]} 55. Qe8+ {[%clk 0:00:15]}  Ne3 {[%clk 0:00:34]} 56. Qb5+ {[%clk 0:00:14]}  Qd3 {[%clk 0:00:34]} 57. Qh5+ {[%clk 0:00:13]}  Kd2 {[%clk 0:00:33]} 58. Qh2+ {[%clk 0:00:13]}  Qe2 {[%clk 0:00:33]} 59. Qd6+ {[%clk 0:00:13]}  Ke1+ {[%clk 0:00:33]} 60. Ka1 {[%clk 0:00:12]}  Nc2+ {[%clk 0:00:30]} 61. Kb2 {[%clk 0:00:11]}  Nd4+ {[%clk 0:00:27]} 62. Ka1 {[%clk 0:00:11]}  Nxb3+ {[%clk 0:00:26]} 63. Kb1 {[%clk 0:00:11]}  Qd1+ {[%clk 0:00:20]} 64. Qxd1+ {[%clk 0:00:11]}  Kxd1 {[%clk 0:00:21]} 65. Kb2 {[%clk 0:00:12]}  a4 {[%clk 0:00:21]} 66. Ka2 {[%clk 0:00:12]}  Nc5 {[%clk 0:00:21]} 67. Kb1 {[%clk 0:00:12]}  b3 {[%clk 0:00:21]} 68. Ka1 {[%clk 0:00:13]}  a3 {[%clk 0:00:19]} 69. Kb1 {[%clk 0:00:13]}  b2 {[%clk 0:00:19]} 70. Ka2 {[%clk 0:00:13]}  Kc2 {[%clk 0:00:19]} 71. Kxa3 {[%clk 0:00:13]}  Nd3 {[%clk 0:00:19]} 0-1


[Site "https://www.chess.com"]

[Event "Titled Tuesday Blitz April 11 Late 2023"]
[White "Kopacz, Grzegorz"]
[Black "Hardaway, Brewington"]
[WhiteFideId "1109880"]
[BlackFideId "30941849"]
[WhiteElo "2037"]
[BlackElo "2159"]
[Result "0-1"]
[Round "01"]
[TimeControl "180+2"]
[Date "2023.04.11"]
[WhiteClock "0:00:00"]
[BlackClock "0:00:00"]

1. c4 {[%clk 0:00:01]}  Nf6 {[%clk 0:00:01]} 2. Nf3 {[%clk 0:00:01]}  g6 {[%clk 0:00:01]} 3. g3 {[%clk 0:00:01]}  Bg7 {[%clk 0:00:01]} 4. Bg2 {[%clk 0:00:01]}  O-O {[%clk 0:00:01]} 5. O-O {[%clk 0:00:01]}  c6 {[%clk 0:00:01]} 6. Nc3 {[%clk 0:00:01]}  d5 {[%clk 0:00:01]} 7. cxd5 {[%clk 0:00:01]}  cxd5 {[%clk 0:00:01]} 8. d4 {[%clk 0:00:01]}  Nc6 {[%clk 0:00:01]} 9. Ne5 {[%clk 0:00:01]}  Bf5 {[%clk 0:00:01]} 10. Bf4 {[%clk 0:00:01]}  Rc8 {[%clk 0:00:01]} 11. Nxc6 {[%clk 0:00:01]}  bxc6 {[%clk 0:00:01]} 12. Be5 {[%clk 0:00:01]}  Qb6 {[%clk 0:00:01]} 13. Na4 {[%clk 0:00:01]}  Qb5 {[%clk 0:00:01]} 14. b3 {[%clk 0:00:01]}  Nd7 {[%clk 0:00:01]} 15. Bxg7 {[%clk 0:00:01]}  Kxg7 {[%clk 0:00:01]} 16. Rc1 {[%clk 0:00:01]}  e5 {[%clk 0:00:01]} 17. e3 {[%clk 0:00:01]}  Rfe8 {[%clk 0:00:01]} 18. Qd2 {[%clk 0:00:01]}  h5 {[%clk 0:00:01]} 19. h4 {[%clk 0:00:00]}  e4 {[%clk 0:00:01]} 20. Nc5 {[%clk 0:00:00]}  Nf6 {[%clk 0:00:01]} 21. Rc2 {[%clk 0:00:00]}  Qb8 {[%clk 0:00:01]} 22. Rfc1 {[%clk 0:00:00]}  Nh7 {[%clk 0:00:01]} 23. Na6 {[%clk 0:00:00]}  Qd6 {[%clk 0:00:01]} 24. Qb4 {[%clk 0:00:00]}  Qe6 {[%clk 0:00:00]} 25. Qa4 {[%clk 0:00:00]}  Qe7 {[%clk 0:00:00]} 26. Qb4 {[%clk 0:00:00]}  Qf6 {[%clk 0:00:00]} 27. Qa4 {[%clk 0:00:00]}  Bd7 {[%clk 0:00:00]} 28. Nc5 {[%clk 0:00:00]}  Bg4 {[%clk 0:00:00]} 29. Na6 {[%clk 0:00:00]}  g5 {[%clk 0:00:00]} 30. Rxc6 {[%clk 0:00:00]}  Rxc6 {[%clk 0:00:00]} 31. Qxc6 {[%clk 0:00:00]}  Re6 {[%clk 0:00:00]} 32. hxg5 {[%clk 0:00:00]}  Nxg5 {[%clk 0:00:00]} 33. Qxd5 {[%clk 0:00:00]}  Rxa6 {[%clk 0:00:00]} 34. Bxe4 {[%clk 0:00:00]}  Rd6 {[%clk 0:00:00]} 35. Qa8 {[%clk 0:00:00]}  Rd8 {[%clk 0:00:00]} 36. Qc6 {[%clk 0:00:00]}  Rd6 {[%clk 0:00:00]} 37. Qa8 {[%clk 0:00:00]}  Nh3+ {[%clk 0:00:00]} 38. Kh2 {[%clk 0:00:00]}  Qxf2+ {[%clk 0:00:00]} 39. Bg2 {[%clk 0:00:00]}  h4 {[%clk 0:00:00]} 40. Rf1 {[%clk 0:00:00]}  hxg3+ {[%clk 0:00:00]} 41. Kh1 {[%clk 0:00:00]}  Qg1+ {[%clk 0:00:00]} 42. Rxg1 {[%clk 0:00:00]}  Nf2# {[%clk 0:00:00]} 0-1


[Site "https://www.chess.com"]

[Event "Titled Tuesday Blitz April 11 Late 2023"]
[White "Dixit, Arun"]
[Black "Thorfinnsson, Bjorn"]
[WhiteFideId "30937671"]
[BlackFideId "2300982"]
[WhiteElo "2301"]
[BlackElo "2395"]
[Result "1-0"]
[Round "01"]
[TimeControl "180+2"]
[Date "2023.04.11"]
[WhiteClock "0:00:00"]
[BlackClock "0:00:01"]

1. Nf3 {[%clk 0:00:01]}  d5 {[%clk 0:00:01]} 2. g3 {[%clk 0:00:01]}  c6 {[%clk 0:00:01]} 3. Bg2 {[%clk 0:00:01]}  Bf5 {[%clk 0:00:01]} 4. O-O {[%clk 0:00:01]}  e6 {[%clk 0:00:01]} 5. d4 {[%clk 0:00:01]}  h6 {[%clk 0:00:01]} 6. c4 {[%clk 0:00:01]}  Nd7 {[%clk 0:00:01]} 7. Nc3 {[%clk 0:00:01]}  Ngf6 {[%clk 0:00:01]} 8. Re1 {[%clk 0:00:01]}  Bb4 {[%clk 0:00:01]} 9. Bd2 {[%clk 0:00:01]}  dxc4 {[%clk 0:00:01]} 10. e4 {[%clk 0:00:01]}  Bg6 {[%clk 0:00:01]} 11. e5 {[%clk 0:00:01]}  Bxc3 {[%clk 0:00:01]} 12. exf6 {[%clk 0:00:01]}  Bxd2 {[%clk 0:00:01]} 13. fxg7 {[%clk 0:00:01]}  Rg8 {[%clk 0:00:01]} 14. Qxd2 {[%clk 0:00:01]}  Rxg7 {[%clk 0:00:01]} 15. Qxh6 {[%clk 0:00:01]}  Rh7 {[%clk 0:00:01]} 16. Qf4 {[%clk 0:00:01]}  Qa5 {[%clk 0:00:01]} 17. Ng5 {[%clk 0:00:01]}  Rg7 {[%clk 0:00:01]} 18. Nxe6 {[%clk 0:00:01]}  fxe6 {[%clk 0:00:01]} 19. Rxe6+ {[%clk 0:00:01]}  Kd8 {[%clk 0:00:01]} 20. Rae1 {[%clk 0:00:01]}  Bf7 {[%clk 0:00:01]} 21. Re7 {[%clk 0:00:00]}  Bd5 {[%clk 0:00:01]} 22. Re8# {[%clk 0:00:00]} 1-0


[Site "https://www.chess.com"]

[Event "Titled Tuesday Blitz April 11 Late 2023"]
[White "Mendez Fortes, Eduardo Jesus"]
[Black "Zampronha, Wladimir Camilo"]
[WhiteFideId "3502376"]
[BlackFideId "2103087"]
[WhiteElo "2307"]
[BlackElo "2176"]
[Result "1-0"]
[Round "01"]
[TimeControl "180+2"]
[Date "2023.04.11"]
[WhiteClock "0:00:01"]
[BlackClock "0:00:00"]

1. e4 {[%clk 0:00:01]}  c5 {[%clk 0:00:01]} 2. Nf3 {[%clk 0:00:01]}  e6 {[%clk 0:00:01]} 3. d4 {[%clk 0:00:01]}  cxd4 {[%clk 0:00:01]} 4. Nxd4 {[%clk 0:00:01]}  Nc6 {[%clk 0:00:01]} 5. Nc3 {[%clk 0:00:01]}  Qc7 {[%clk 0:00:01]} 6. Be3 {[%clk 0:00:01]}  a6 {[%clk 0:00:01]} 7. Qd2 {[%clk 0:00:01]}  Nf6 {[%clk 0:00:01]} 8. O-O-O {[%clk 0:00:01]}  b5 {[%clk 0:00:01]} 9. Nxc6 {[%clk 0:00:01]}  Qxc6 {[%clk 0:00:01]} 10. e5 {[%clk 0:00:01]}  b4 {[%clk 0:00:01]} 11. Ne2 {[%clk 0:00:01]}  Nd5 {[%clk 0:00:01]} 12. Nd4 {[%clk 0:00:01]}  Qb7 {[%clk 0:00:01]} 13. Be2 {[%clk 0:00:01]}  Rb8 {[%clk 0:00:01]} 14. Bf3 {[%clk 0:00:01]}  a5 {[%clk 0:00:00]} 15. Ne2 {[%clk 0:00:01]}  Qc7 {[%clk 0:00:00]} 16. Bxd5 {[%clk 0:00:01]}  exd5 {[%clk 0:00:00]} 17. Nf4 {[%clk 0:00:01]}  Be7 {[%clk 0:00:00]} 18. Nxd5 {[%clk 0:00:01]}  Qxe5 {[%clk 0:00:00]} 19. Bf4 {[%clk 0:00:01]} 1-0


[Site "https://www.chess.com"]

[Event "Titled Tuesday Blitz April 11 Late 2023"]
[White "Romero Ruscalleda, Josep"]
[Black "Ozates, Tuna"]
[WhiteFideId "2231859"]
[BlackFideId "6354521"]
[WhiteElo "2183"]
[BlackElo "2151"]
[Result "0-1"]
[Round "01"]
[TimeControl "180+2"]
[Date "2023.04.11"]
[WhiteClock "0:00:00"]
[BlackClock "0:00:00"]

1. e4 {[%clk 0:00:01]}  c5 {[%clk 0:00:01]} 2. c3 {[%clk 0:00:01]}  d5 {[%clk 0:00:01]} 3. exd5 {[%clk 0:00:01]}  Nf6 {[%clk 0:00:01]} 4. Nf3 {[%clk 0:00:01]}  Nxd5 {[%clk 0:00:01]} 5. Bc4 {[%clk 0:00:01]}  Nc6 {[%clk 0:00:01]} 6. O-O {[%clk 0:00:01]}  Nb6 {[%clk 0:00:01]} 7. Bb3 {[%clk 0:00:01]}  c4 {[%clk 0:00:01]} 8. Bc2 {[%clk 0:00:01]}  Bg4 {[%clk 0:00:01]} 9. h3 {[%clk 0:00:01]}  Bh5 {[%clk 0:00:01]} 10. Re1 {[%clk 0:00:01]}  e6 {[%clk 0:00:01]} 11. d4 {[%clk 0:00:01]}  Bd6 {[%clk 0:00:01]} 12. Nbd2 {[%clk 0:00:01]}  O-O {[%clk 0:00:01]} 13. Ne4 {[%clk 0:00:01]}  Be7 {[%clk 0:00:01]} 14. Ng3 {[%clk 0:00:01]}  Bg6 {[%clk 0:00:01]} 15. Bf4 {[%clk 0:00:01]}  Nd5 {[%clk 0:00:01]} 16. Bd2 {[%clk 0:00:01]}  b5 {[%clk 0:00:01]} 17. Bxg6 {[%clk 0:00:01]}  hxg6 {[%clk 0:00:01]} 18. Ne5 {[%clk 0:00:01]}  Nxe5 {[%clk 0:00:01]} 19. Rxe5 {[%clk 0:00:01]}  a5 {[%clk 0:00:01]} 20. Qe2 {[%clk 0:00:01]}  Qc7 {[%clk 0:00:01]} 21. a3 {[%clk 0:00:01]}  b4 {[%clk 0:00:01]} 22. axb4 {[%clk 0:00:01]}  axb4 {[%clk 0:00:01]} 23. Rxa8 {[%clk 0:00:01]}  Rxa8 {[%clk 0:00:01]} 24. Nf1 {[%clk 0:00:00]}  Bd6 {[%clk 0:00:01]} 25. Re4 {[%clk 0:00:00]}  b3 {[%clk 0:00:01]} 26. g3 {[%clk 0:00:00]}  Ra1 {[%clk 0:00:01]} 27. Kg2 {[%clk 0:00:00]}  Rb1 {[%clk 0:00:01]} 28. Bg5 {[%clk 0:00:00]}  Qc6 {[%clk 0:00:01]} 29. Kh2 {[%clk 0:00:00]}  Nf6 {[%clk 0:00:01]} 30. Bxf6 {[%clk 0:00:00]}  gxf6 {[%clk 0:00:01]} 31. Kg1 {[%clk 0:00:00]}  f5 {[%clk 0:00:01]} 32. Re3 {[%clk 0:00:00]}  f4 {[%clk 0:00:00]} 33. gxf4 {[%clk 0:00:00]}  Bxf4 {[%clk 0:00:00]} 34. Rf3 {[%clk 0:00:00]}  Bc1 {[%clk 0:00:00]} 35. Ng3 {[%clk 0:00:00]}  Bxb2+ {[%clk 0:00:00]} 36. Kg2 {[%clk 0:00:00]}  Bxc3 {[%clk 0:00:00]} 37. Ne4 {[%clk 0:00:00]}  Bxd4 {[%clk 0:00:00]} 38. Qd2 {[%clk 0:00:00]}  Qxe4 {[%clk 0:00:00]} 39. Qg5 {[%clk 0:00:00]}  b2 {[%clk 0:00:00]} 40. Qd8+ {[%clk 0:00:00]}  Kg7 {[%clk 0:00:00]} 41. Kg3 {[%clk 0:00:00]}  Rg1+ {[%clk 0:00:00]} 0-1


[Site "https://www.chess.com"]

[Event "Titled Tuesday Blitz April 11 Late 2023"]
[White "Alahakoon, Isuru"]
[Black "Suder, Jakub"]
[WhiteFideId "9900993"]
[BlackFideId "1195310"]
[WhiteElo "1995"]
[BlackElo "2287"]
[Result "0-1"]
[Round "01"]
[TimeControl "180+2"]
[Date "2023.04.11"]
[WhiteClock "0:00:00"]
[BlackClock "0:00:00"]

1. Nf3 {[%clk 0:00:01]}  d5 {[%clk 0:00:01]} 2. e3 {[%clk 0:00:01]}  Nf6 {[%clk 0:00:01]} 3. c4 {[%clk 0:00:01]}  e6 {[%clk 0:00:01]} 4. b3 {[%clk 0:00:01]}  Be7 {[%clk 0:00:01]} 5. Bb2 {[%clk 0:00:01]}  O-O {[%clk 0:00:01]} 6. Nc3 {[%clk 0:00:01]}  c5 {[%clk 0:00:01]} 7. cxd5 {[%clk 0:00:01]}  exd5 {[%clk 0:00:01]} 8. d4 {[%clk 0:00:01]}  Bg4 {[%clk 0:00:01]} 9. Be2 {[%clk 0:00:01]}  Nbd7 {[%clk 0:00:01]} 10. O-O {[%clk 0:00:01]}  Rc8 {[%clk 0:00:01]} 11. dxc5 {[%clk 0:00:01]}  Nxc5 {[%clk 0:00:01]} 12. Rc1 {[%clk 0:00:01]}  Nce4 {[%clk 0:00:01]} 13. Nd4 {[%clk 0:00:01]}  Bxe2 {[%clk 0:00:01]} 14. Ncxe2 {[%clk 0:00:01]}  Qa5 {[%clk 0:00:01]} 15. Nf5 {[%clk 0:00:01]}  Ba3 {[%clk 0:00:01]} 16. Rxc8 {[%clk 0:00:01]}  Rxc8 {[%clk 0:00:01]} 17. Ba1 {[%clk 0:00:01]}  Bf8 {[%clk 0:00:01]} 18. Neg3 {[%clk 0:00:01]}  Nc3 {[%clk 0:00:01]} 19. Qd4 {[%clk 0:00:01]}  Qb4 {[%clk 0:00:01]} 20. Qe5 {[%clk 0:00:00]}  Ng4 {[%clk 0:00:00]} 21. Bxc3 {[%clk 0:00:00]}  Nxe5 {[%clk 0:00:00]} 22. Bxb4 {[%clk 0:00:00]}  Bxb4 {[%clk 0:00:00]} 23. Rd1 {[%clk 0:00:00]}  g6 {[%clk 0:00:00]} 24. Rxd5 {[%clk 0:00:00]}  Ng4 {[%clk 0:00:00]} 25. h3 {[%clk 0:00:00]}  Nf6 {[%clk 0:00:00]} 26. Rb5 {[%clk 0:00:00]}  Bf8 {[%clk 0:00:00]} 27. Nd4 {[%clk 0:00:00]}  b6 {[%clk 0:00:00]} 28. Re5 {[%clk 0:00:00]}  Bd6 {[%clk 0:00:00]} 29. Rb5 {[%clk 0:00:00]}  Ne4 {[%clk 0:00:00]} 30. Nxe4 {[%clk 0:00:00]}  Rc1# {[%clk 0:00:00]} 0-1


[Site "https://www.chess.com"]

[Event "Titled Tuesday Blitz April 11 Late 2023"]
[White "Djokic, Mihailo"]
[Black "Marchesich, Giovanni"]
[WhiteFideId "976440"]
[BlackFideId "2824790"]
[WhiteElo "2294"]
[BlackElo "2209"]
[Result "0-1"]
[Round "01"]
[TimeControl "180+2"]
[Date "2023.04.11"]
[WhiteClock "0:00:00"]
[BlackClock "0:00:00"]

1. e4 {[%clk 0:00:01]}  e5 {[%clk 0:00:01]} 2. Nf3 {[%clk 0:00:01]}  d5 {[%clk 0:00:01]} 3. Nxe5 {[%clk 0:00:01]}  Bd6 {[%clk 0:00:01]} 4. d4 {[%clk 0:00:01]}  dxe4 {[%clk 0:00:01]} 5. Nc4 {[%clk 0:00:01]}  Nf6 {[%clk 0:00:01]} 6. Nc3 {[%clk 0:00:01]}  O-O {[%clk 0:00:01]} 7. Ne3 {[%clk 0:00:01]}  c5 {[%clk 0:00:01]} 8. dxc5 {[%clk 0:00:01]}  Bxc5 {[%clk 0:00:01]} 9. Bc4 {[%clk 0:00:01]}  Qxd1+ {[%clk 0:00:01]} 10. Ncxd1 {[%clk 0:00:01]}  Nc6 {[%clk 0:00:01]} 11. c3 {[%clk 0:00:01]}  Ne5 {[%clk 0:00:01]} 12. O-O {[%clk 0:00:01]}  Nxc4 {[%clk 0:00:01]} 13. Nxc4 {[%clk 0:00:01]}  Be6 {[%clk 0:00:01]} 14. Na5 {[%clk 0:00:01]}  Bb6 {[%clk 0:00:01]} 15. Nb3 {[%clk 0:00:01]}  Nd5 {[%clk 0:00:01]} 16. Re1 {[%clk 0:00:01]}  f5 {[%clk 0:00:01]} 17. Ne3 {[%clk 0:00:01]}  Nf4 {[%clk 0:00:01]} 18. Nd1 {[%clk 0:00:01]}  Nd3 {[%clk 0:00:01]} 19. Re2 {[%clk 0:00:01]}  Nxc1 {[%clk 0:00:01]} 20. Rxc1 {[%clk 0:00:01]}  Bc4 {[%clk 0:00:01]} 21. Rd2 {[%clk 0:00:01]}  Rad8 {[%clk 0:00:01]} 22. Rxd8 {[%clk 0:00:01]}  Rxd8 {[%clk 0:00:01]} 23. Ne3 {[%clk 0:00:00]}  Bxe3 {[%clk 0:00:01]} 24. fxe3 {[%clk 0:00:00]}  Bxb3 {[%clk 0:00:01]} 25. axb3 {[%clk 0:00:00]}  Rd2 {[%clk 0:00:01]} 26. Rb1 {[%clk 0:00:00]}  Re2 {[%clk 0:00:01]} 27. Rd1 {[%clk 0:00:00]}  Rxe3 {[%clk 0:00:00]} 28. Rd8+ {[%clk 0:00:00]}  Kf7 {[%clk 0:00:00]} 29. Rd7+ {[%clk 0:00:00]}  Kf6 {[%clk 0:00:00]} 30. Rxb7 {[%clk 0:00:00]}  Re1+ {[%clk 0:00:00]} 31. Kf2 {[%clk 0:00:00]}  Rb1 {[%clk 0:00:00]} 32. c4 {[%clk 0:00:00]}  Rxb2+ {[%clk 0:00:00]} 33. Ke3 {[%clk 0:00:00]}  Rxg2 {[%clk 0:00:00]} 34. c5 {[%clk 0:00:00]}  Rc2 {[%clk 0:00:00]} 35. b4 {[%clk 0:00:00]}  g5 {[%clk 0:00:00]} 36. Rxa7 {[%clk 0:00:00]}  Rc4 {[%clk 0:00:00]} 37. Rb7 {[%clk 0:00:00]}  f4+ {[%clk 0:00:00]} 38. Kd2 {[%clk 0:00:00]}  g4 {[%clk 0:00:00]} 39. Rb6+ {[%clk 0:00:00]}  Ke5 {[%clk 0:00:00]} 40. c6 {[%clk 0:00:00]}  Kd4 {[%clk 0:00:00]} 41. b5 {[%clk 0:00:00]}  e3+ {[%clk 0:00:00]} 42. Kd1 {[%clk 0:00:00]}  Kd3 {[%clk 0:00:00]} 43. Rb8 {[%clk 0:00:00]}  e2+ {[%clk 0:00:00]} 44. Ke1 {[%clk 0:00:00]}  Rc1+ {[%clk 0:00:00]} 45. Kf2 {[%clk 0:00:00]}  Rf1+ {[%clk 0:00:00]} 0-1


[Site "https://www.chess.com"]

[Event "Titled Tuesday Blitz April 11 Late 2023"]
[White "Sahl, Bjarke"]
[Black "Haydon, David L"]
[WhiteFideId "1400231"]
[BlackFideId "415405"]
[WhiteElo "2307"]
[BlackElo "2326"]
[Result "0-1"]
[Round "01"]
[TimeControl "180+2"]
[Date "2023.04.11"]
[WhiteClock "0:00:00"]
[BlackClock "0:00:01"]

1. Nc3 {[%clk 0:00:01]}  Nf6 {[%clk 0:00:01]} 2. e4 {[%clk 0:00:01]}  d5 {[%clk 0:00:01]} 3. e5 {[%clk 0:00:01]}  Ne4 {[%clk 0:00:01]} 4. d3 {[%clk 0:00:01]}  Nxc3 {[%clk 0:00:01]} 5. bxc3 {[%clk 0:00:01]}  c5 {[%clk 0:00:01]} 6. Nf3 {[%clk 0:00:01]}  Nc6 {[%clk 0:00:01]} 7. Be2 {[%clk 0:00:01]}  Bg4 {[%clk 0:00:01]} 8. d4 {[%clk 0:00:01]}  e6 {[%clk 0:00:01]} 9. O-O {[%clk 0:00:01]}  Qb6 {[%clk 0:00:01]} 10. Be3 {[%clk 0:00:01]}  c4 {[%clk 0:00:01]} 11. Ng5 {[%clk 0:00:01]}  Bxe2 {[%clk 0:00:01]} 12. Qxe2 {[%clk 0:00:01]}  Be7 {[%clk 0:00:01]} 13. Qh5 {[%clk 0:00:01]}  Bxg5 {[%clk 0:00:01]} 14. Qxg5 {[%clk 0:00:01]}  O-O {[%clk 0:00:01]} 15. Rab1 {[%clk 0:00:01]}  Qc7 {[%clk 0:00:01]} 16. f4 {[%clk 0:00:01]}  Ne7 {[%clk 0:00:01]} 17. g4 {[%clk 0:00:01]}  f5 {[%clk 0:00:01]} 18. exf6 {[%clk 0:00:01]}  Rxf6 {[%clk 0:00:01]} 19. Qe5 {[%clk 0:00:01]}  Qd7 {[%clk 0:00:01]} 20. g5 {[%clk 0:00:00]}  Rf5 {[%clk 0:00:01]} 0-1


[Site "https://www.chess.com"]